fUSD/lending_fUSD_20250123
["ID","MTS","AMOUNT","RATE_DAILY","PERIOD"]
[350094654,1737623434124,-517.55481756,0.00016438,2]
[350094655,1737623434133,-520.87,0.00016438,2]
[350094656,1737623434143,-500.0,0.00016438,2]
[350094657,1737623434157,-500.0,0.00016438,2]
[350094658,1737623434166,-500.0,0.00016438,2]
[350094659,1737623434176,-500.0,0.00016438,2]
[350094660,1737623434185,-500.0,0.00016438,2]
[350094661,1737623434195,-500.0,0.00016438,2]
[350094662,1737623434205,-500.0,0.00016438,2]
[350094663,1737623434214,-500.0,0.00016438,2]
[350094664,1737623434224,-500.0,0.00016438,2]
[350094665,1737623434235,-500.0,0.00016438,2]
[350094666,1737623434244,-500.0,0.00016438,2]
[350094667,1737623434254,-612.6911928,0.00016438,2]
[350094668,1737623434264,-500.0,0.00016438,2]
[350094669,1737623434273,-500.0,0.00016438,2]
[350094670,1737623434282,-500.0,0.00016438,2]
[350094671,1737623434292,-500.0,0.00016438,2]
[350094672,1737623434301,-500.0,0.00016438,2]
[350094673,1737623434310,-500.0,0.00016438,2]
[350094674,1737623434320,-500.0,0.00016438,2]
[350094675,1737623434330,-500.0,0.00016438,2]
[350094676,1737623434340,-500.0,0.00016438,2]
[350094677,1737623434349,-500.0,0.00016438,2]
[350094678,1737623434359,-500.0,0.00016438,2]
[350094679,1737623434368,-155.1019774,0.00016438,2]
[350094680,1737623434377,-500.0,0.00016438,2]
[350094681,1737623434387,-500.0,0.00016438,2]
[350094682,1737623434397,-500.0,0.00016438,2]
[350094683,1737623434406,-500.0,0.00016438,2]
[350094684,1737623434415,-500.0,0.00016438,2]
[350094685,1737623434424,-500.0,0.00016438,2]
[350094686,1737623434434,-500.0,0.00016438,2]
[350094687,1737623434444,-500.0,0.00016438,2]
[350094688,1737623434453,-546.07,0.00016438,2]
[350094689,1737623434462,-500.0,0.00016438,2]
[350094690,1737623434471,-500.0,0.00016438,2]
[350094691,1737623434480,-500.0,0.00016438,2]
[350094692,1737623434489,-500.0,0.00016438,2]
[350094693,1737623434499,-500.0,0.00016438,2]
[350094694,1737623434508,-497.2644259,0.00016438,2]
[350094695,1737623434517,-269.475169,0.00016438,2]
[350094696,1737623434527,-500.0,0.00016438,2]
[350094697,1737623434536,-321.34195063,0.00016438,2]
[350094698,1737623434545,-500.0,0.00016438,2]
[350094699,1737623434554,-500.0,0.00016438,2]
[350094700,1737623434564,-500.0,0.00016438,2]
[350094701,1737623434573,-500.0,0.00016438,2]
[350094702,1737623434582,-500.0,0.00016438,2]
[350094703,1737623434591,-161.561958,0.00016438,2]
[350094704,1737623434600,-500.0,0.00016438,2]
[350094705,1737623434609,-500.0,0.00016438,2]
[350094706,1737623434619,-603.2,0.00016438,2]
[350094707,1737623434627,-500.0,0.00016438,2]
[350094708,1737623434636,-500.0,0.00016438,2]
[350094709,1737623434645,-500.0,0.00016438,2]
[350094710,1737623434655,-500.0,0.00016438,2]
[350094711,1737623434664,-500.0,0.00016438,2]
[350094712,1737623434674,-500.0,0.00016438,2]
[350094713,1737623434683,-500.0,0.00016438,2]
[350094714,1737623434692,-443.51931436,0.00016438,2]
[350094715,1737623434701,-500.0,0.00016438,2]
[350094716,1737623434711,-500.0,0.00016438,2]
[350094717,1737623434720,-150.933969,0.00016438,2]
[350094718,1737623434729,-575.64,0.00016438,2]
[350094719,1737623434738,-500.0,0.00016438,2]
[350094720,1737623434747,-500.0,0.00016438,2]
[350094721,1737623434756,-627.37767151,0.00016438,2]
[350094722,1737623434765,-500.0,0.00016438,2]
[350094723,1737623434775,-500.0,0.00016438,2]
[350094724,1737623434784,-500.0,0.00016438,2]
[350094725,1737623434793,-500.0,0.00016438,2]
[350094726,1737623434802,-536.69,0.00016438,2]
[350094727,1737623434811,-500.0,0.00016438,2]
[350094728,1737623434820,-561.16,0.00016438,2]
[350094729,1737623434829,-500.0,0.00016438,2]
[350094730,1737623434838,-500.0,0.00016438,2]
[350094731,1737623434847,-202.85641197,0.00016438,2]
[350094732,1737623434856,-500.0,0.00016438,2]
[350094733,1737623434867,-686.87,0.00016438,2]
[350094734,1737623434878,-500.0,0.00016438,2]
[350094735,1737623434887,-500.0,0.00016438,2]
[350094736,1737623434898,-500.0,0.00016438,2]
[350094737,1737623434907,-500.0,0.00016438,2]
[350094738,1737623434918,-500.0,0.00016438,2]
[350094739,1737623434928,-500.0,0.00016438,2]
[350094740,1737623434937,-654.61,0.00016438,2]
[350094741,1737623434946,-500.0,0.00016438,2]
[350094742,1737623434954,-615.36,0.00016438,2]
[350094743,1737623434963,-624.42406703,0.00016438,2]
[350094744,1737623434973,-500.0,0.00016438,2]
[350094745,1737623434984,-500.0,0.00016438,2]
[350094746,1737623434995,-651.77,0.00016438,2]
[350094747,1737623435005,-500.0,0.00016438,2]
[350094748,1737623435015,-414.97307571,0.00016438,2]
[350094749,1737623435026,-500.0,0.00016438,2]
[350094750,1737623435037,-505.57,0.00016438,2]
[350094751,1737623435047,-500.0,0.00016438,2]
[350094752,1737623435057,-500.0,0.00016438,2]
[350094753,1737623435069,-551.97,0.00016438,2]
[350094754,1737623435082,-500.0,0.00016438,2]
[350094755,1737623435091,-500.0,0.00016438,2]
[350094756,1737623435101,-500.0,0.00016438,2]
[350094757,1737623435112,-505.33298701,0.00016438,2]
[350094758,1737623435122,-500.0,0.00016438,2]
[350094759,1737623435133,-500.0,0.00016438,2]
[350094760,1737623435144,-628.37,0.00016438,2]
[350094761,1737623435158,-500.0,0.00016438,2]
[350094762,1737623435168,-500.0,0.00016438,2]
[350094763,1737623435178,-500.0,0.00016438,2]
[350094764,1737623435188,-500.0,0.00016438,2]
[350094765,1737623435197,-500.0,0.00016438,2]
[350094766,1737623435207,-500.0,0.00016438,2]
[350094767,1737623435216,-228.19442843,0.00016438,2]
[350094768,1737623435226,-597.88,0.00016438,2]
[350094769,1737623435236,-500.0,0.00016438,2]
[350094770,1737623435245,-500.0,0.00016438,2]
[350094771,1737623435254,-500.0,0.00016438,2]
[350094772,1737623435263,-500.0,0.00016438,2]
[350094773,1737623435272,-500.0,0.00016438,2]
[350094774,1737623435281,-500.0,0.00016438,2]
[350094775,1737623435290,-500.0,0.00016438,2]
[350094776,1737623435299,-618.63,0.00016438,2]
[350094777,1737623435309,-500.0,0.00016438,2]
[350094778,1737623435318,-500.0,0.00016438,2]
[350094779,1737623435329,-500.0,0.00016438,2]
[350094780,1737623435338,-621.00902689,0.00016438,2]
[350094781,1737623435347,-500.0,0.00016438,2]
[350094782,1737623435356,-517.34,0.00016438,2]
[350094783,1737623435365,-500.0,0.00016438,2]
[350094784,1737623435374,-666.65,0.00016438,2]
[350094785,1737623435384,-522.44532919,0.00016438,2]
[350094786,1737623435393,-500.0,0.00016438,2]
[350094787,1737623435402,-712.35,0.00016438,2]
[350094788,1737623435411,-500.0,0.00016438,2]
[350094789,1737623435420,-500.0,0.00016438,2]
[350094790,1737623435429,-500.0,0.00016438,2]
[350094791,1737623435438,-500.0,0.00016438,2]
[350094792,1737623435448,-500.0,0.00016438,2]
[350094793,1737623435457,-983.62,0.00016438,2]
[350094794,1737623435466,-500.0,0.00016438,2]
[350094795,1737623435475,-500.0,0.00016438,2]
[350094796,1737623435484,-511.10438094,0.00016438,2]
[350094797,1737623435493,-500.0,0.00016438,2]
[350094798,1737623435503,-554.84,0.00016438,2]
[350094799,1737623435512,-500.0,0.00016438,2]
[350094800,1737623435521,-1940.63,0.00016438,2]
[350094801,1737623435532,-1022.82,0.00016438,2]
[350094802,1737623435541,-433.24254684,0.00016438,2]
[350094803,1737623435551,-500.0,0.00016438,2]
[350094804,1737623435560,-500.0,0.00016438,2]
[350094805,1737623435569,-500.0,0.00016438,2]
[350094806,1737623435579,-500.0,0.00016438,2]
[350094807,1737623435589,-500.0,0.00016438,2]
[350094808,1737623435598,-3587.15,0.00016438,2]
[350094809,1737623435607,-500.0,0.00016438,2]
[350094810,1737623435618,-500.0,0.00016438,2]
[350094811,1737623435627,-2068.44,0.00016438,2]
[350094812,1737623435636,-533.91,0.00016438,2]
[350094813,1737623435645,-521.41364468,0.00016438,2]
[350094814,1737623435654,-500.0,0.00016438,2]
[350094815,1737623435663,-731.16,0.00016438,2]
[350094816,1737623435673,-500.0,0.00016438,2]
[350094817,1737623435682,-500.0,0.00016438,2]
[350094818,1737623435691,-500.0,0.00016438,2]
[350094819,1737623435701,-616.9,0.00016438,2]
[350094820,1737623435710,-500.0,0.00016438,2]
[350094821,1737623435719,-689.59,0.00016438,2]
[350094822,1737623435729,-500.0,0.00016438,2]
[350094823,1737623435738,-261.01012217,0.00016438,2]
[350094824,1737623435748,-500.0,0.00016438,2]
[350094825,1737623435757,-500.0,0.00016438,2]
[350094826,1737623435766,-500.0,0.00016438,2]
[350094827,1737623435775,-796.43,0.00016438,2]
[350094828,1737623435784,-1487.94,0.00016438,2]
[350094829,1737623435793,-1131.91,0.00016438,2]
[350094830,1737623435802,-517.79850339,0.00016438,2]
[350094831,1737623435811,-500.0,0.00016438,2]
[350094832,1737623435821,-630.97,0.00016438,2]
[350094833,1737623435831,-500.0,0.00016438,2]
[350094834,1737623435840,-500.0,0.00016438,2]
[350094835,1737623435849,-500.0,0.00016438,2]
[350094836,1737623435859,-500.0,0.00016438,2]
[350094837,1737623435867,-500.0,0.00016438,2]
[350094838,1737623435876,-1240.51,0.00016438,2]
[350094839,1737623435885,-500.0,0.00016438,2]
[350094840,1737623435894,-1460.52,0.00016438,2]
[350094841,1737623435903,-2135.22,0.00016438,2]
[350094842,1737623435912,-247.26285774,0.00016438,2]
[350094843,1737623435921,-500.0,0.00016438,2]
[350094844,1737623435930,-500.0,0.00016438,2]
[350094845,1737623435939,-1323.84,0.00016438,2]
[350094846,1737623435948,-500.0,0.00016438,2]
[350094847,1737623435957,-500.0,0.00016438,2]
[350094848,1737623435966,-500.0,0.00016438,2]
[350094849,1737623435975,-500.0,0.00016438,2]
[350094850,1737623435984,-500.0,0.00016438,2]
[350094851,1737623435993,-500.0,0.00016438,2]
[350094852,1737623436002,-500.0,0.00016438,2]
[350094853,1737623436011,-639.3,0.00016438,2]
[350094854,1737623436020,-888.2,0.00016438,2]
[350094855,1737623436029,-3222.74,0.00016438,2]
[350094856,1737623436039,-500.0,0.00016438,2]
[350094857,1737623436048,-832.79,0.00016438,2]
[350094858,1737623436057,-2190.49,0.00016438,2]
[350094859,1737623436066,-271.36297565,0.00016438,2]
[350094860,1737623436075,-500.0,0.00016438,2]
[350094861,1737623436083,-500.0,0.00016438,2]
[350094862,1737623436092,-500.0,0.00016438,2]
[350094863,1737623436102,-514.18,0.00016438,2]
[350094864,1737623436112,-1235.63,0.00016438,2]
[350094865,1737623436122,-850.06,0.00016438,2]
[350094866,1737623436133,-500.0,0.00016438,2]
[350094867,1737623436143,-1503.07,0.00016438,2]
[350094868,1737623436155,-500.0,0.00016438,2]
[350094869,1737623436164,-500.0,0.00016438,2]
[350094870,1737623436173,-516.46,0.00016438,2]
[350094871,1737623436182,-810.5,0.00016438,2]
[350094872,1737623436192,-518.7662952,0.00016438,2]
[350094873,1737623436201,-985.71,0.00016438,2]
[350094874,1737623436210,-500.0,0.00016438,2]
[350094876,1737623436219,-1766.55,0.00016438,2]
[350094877,1737623436229,-500.0,0.00016438,2]
[350094878,1737623436238,-403.04081402,0.00016438,2]
[350094879,1737623436247,-681.62,0.00016438,2]
[350094880,1737623436256,-500.0,0.00016438,2]
[350094881,1737623436265,-570.52,0.00016438,2]
[350094882,1737623436274,-510.90473252,0.00016438,2]
[350094883,1737623436283,-500.0,0.00016438,2]
[350094884,1737623436292,-500.0,0.00016438,2]
[350094885,1737623436301,-750.38,0.00016438,2]
[350094886,1737623436310,-500.0,0.00016438,2]
[350094887,1737623436319,-500.0,0.00016438,2]
[350094888,1737623436330,-500.0,0.00016438,2]
[350094889,1737623436339,-570.96,0.00016438,2]
[350094890,1737623436348,-392.49309238,0.00016438,2]
[350094891,1737623436368,-875.97690762,0.00016438,2]
[350094892,1737623436378,-410.1409171,0.00016438,2]
[350094893,1737623436387,-500.0,0.00016438,2]
[350094894,1737623436396,-1000.0,0.00016438,2]
[350094895,1737623436405,-500.0,0.00016438,2]
[350094896,1737623436414,-500.0,0.00016438,2]
[350094897,1737623436423,-500.0,0.00016438,2]
[350094898,1737623436432,-840.27,0.00016438,2]
[350094899,1737623436442,-817.64,0.00016438,2]
[350094900,1737623436451,-500.0,0.00016438,2]
[350094901,1737623436461,-1745.63,0.00016438,2]
[350094902,1737623436470,-500.0,0.00016438,2]
[350094903,1737623436479,-500.0,0.00016438,2]
[350094904,1737623436488,-519.78060272,0.00016438,2]
[350094905,1737623436497,-501.96927054,0.00016438,2]
[350094906,1737623436506,-500.0,0.00016438,2]
[350094907,1737623436515,-819.67,0.00016438,2]
[350094908,1737623436524,-332.65464208,0.00016438,2]
[350094909,1737623436536,-927.03535792,0.00016438,2]
[350094910,1737623436545,-500.0,0.00016438,2]
[350094911,1737623436554,-1349.21,0.00016438,2]
[350094912,1737623436563,-473.75464207,0.00016438,2]
[350094913,1737623436575,-26.24535793,0.00016438,2]
[350094914,1737623436587,-965.94027823,0.00016438,2]
[350094915,1737623436598,-873.44972177,0.00016438,2]
[350094916,1737623436607,-635.29,0.00016438,2]
[350094917,1737623436617,-604.54314138,0.00016438,2]
[350094927,1737623438304,-297.57685862,0.00016438,2]
[350094928,1737623438314,-12.70314038,0.00016438,2]
[350094929,1737623438334,-487.29685962,0.00016438,2]
[350094930,1737623438344,-500.0,0.00016438,2]
[350094931,1737623438353,-623.84,0.00016438,2]
[350094932,1737623438362,-949.65,0.00016438,2]
[350094933,1737623438372,-1494.47,0.00016438,2]
[350094934,1737623438381,-500.0,0.00016438,2]
[350094935,1737623438391,-500.0,0.00016438,2]
[350094936,1737623438400,-500.0,0.00016438,2]
[350094937,1737623438409,-500.0,0.00016438,2]
[350094938,1737623438418,-500.0,0.00016438,2]
[350094939,1737623438428,-1371.94,0.00016438,2]
[350094940,1737623438437,-530.07,0.00016438,2]
[350094941,1737623438446,-500.0,0.00016438,2]
[350094942,1737623438456,-468.43380341,0.00016438,2]
[350094943,1737623438468,-852.86619659,0.00016438,2]
[350094944,1737623438478,-500.0,0.00016438,2]
[350094945,1737623438488,-500.0,0.00016438,2]
[350094946,1737623438497,-649.37,0.00016438,2]
[350094947,1737623438507,-710.35,0.00016438,2]
[350094948,1737623438516,-5333.65,0.00016438,2]
[350094949,1737623438526,-1430.65,0.00016438,2]
[350094950,1737623438535,-500.0,0.00016438,2]
[350094951,1737623438544,-500.0,0.00016438,2]
[350094952,1737623438554,-593.28,0.00016438,2]
[350094953,1737623438563,-500.0,0.00016438,2]
[350094954,1737623438572,-500.0,0.00016438,2]
[350094955,1737623438582,-500.0,0.00016438,2]
[350094956,1737623438591,-500.0,0.00016438,2]
[350094957,1737623438601,-936.29,0.00016438,2]
[350094958,1737623438610,-500.0,0.00016438,2]
[350094959,1737623438619,-1870.68,0.00016438,2]
[350094961,1737623438628,-500.0,0.00016438,2]
[350094962,1737623438639,-500.0,0.00016438,2]
[350094963,1737623438649,-542.4,0.00016438,2]
[350094964,1737623438658,-500.0,0.00016438,2]
[350094965,1737623438667,-500.0,0.00016438,2]
[350094966,1737623438676,-500.0,0.00016438,2]
[350094967,1737623438685,-500.0,0.00016438,2]
[350094968,1737623438694,-500.0,0.00016438,2]
[350094969,1737623438703,-511.19,0.00016438,2]
[350094970,1737623438712,-890.63,0.00016438,2]
[350094971,1737623438721,-500.0,0.00016438,2]
[350094972,1737623438732,-500.0,0.00016438,2]
[350094973,1737623438742,-1691.43,0.00016438,2]
[350094974,1737623438753,-500.0,0.00016438,2]
[350094975,1737623438763,-500.0,0.00016438,2]
[350094976,1737623438775,-573.14,0.00016438,2]
[350094977,1737623438784,-500.0,0.00016438,2]
[350094978,1737623438794,-500.0,0.00016438,2]
[350094979,1737623438803,-500.0,0.00016438,2]
[350094981,1737623438812,-579.72,0.00016438,2]
[350094982,1737623438823,-500.0,0.00016438,2]
[350094984,1737623438833,-1326.68,0.00016438,2]
[350094985,1737623438842,-726.89,0.00016438,2]
[350094986,1737623438851,-666.14,0.00016438,2]
[350094987,1737623438861,-530.75,0.00016438,2]
[350094988,1737623438872,-1014.66,0.00016438,2]
[350094989,1737623438882,-680.99,0.00016438,2]
[350094990,1737623438891,-500.0,0.00016438,2]
[350094991,1737623438902,-564.73,0.00016438,2]
[350094992,1737623438912,-500.0,0.00016438,2]
[350094993,1737623438923,-500.0,0.00016438,2]
[350094994,1737623438932,-832.5,0.00016438,2]
[350094995,1737623438942,-1381.84,0.00016438,2]
[350094996,1737623438951,-1023.9,0.00016438,2]
[350094997,1737623438962,-552.13482743,0.00016438,2]
[350094998,1737623438971,-1265.3,0.00016438,2]
[350094999,1737623438979,-500.0,0.00016438,2]
[350095000,1737623438989,-480.24916682,0.00016438,2]
[350095001,1737623438998,-500.0,0.00016438,2]
[350095002,1737623439008,-500.0,0.00016438,2]
[350095003,1737623439018,-500.0,0.00016438,2]
[350095004,1737623439028,-1106.31,0.00016438,2]
[350095005,1737623439039,-500.0,0.00016438,2]
[350095006,1737623439049,-500.0,0.00016438,2]
[350095007,1737623439058,-167.66,0.00016438,2]
[350095008,1737623439067,-161.64,0.00016572,2]
[350095009,1737623439077,-155.18,0.0001664,2]
[350095010,1737623439086,-2597.0640295,0.00016647,2]
[350095011,1737623439095,-6729.7862423,0.00016647,2]
[350095012,1737623439104,-200.0,0.00016658,2]
[350095013,1737623439113,-390.94,0.00016711,2]
[350095014,1737623439123,-2112.0,0.00016712,2]
[350095015,1737623439132,-500.0,0.00016712,2]
[350095016,1737623439141,-500.0,0.00016712,2]
[350095017,1737623439154,-500.0,0.00016712,2]
[350095018,1737623439164,-500.0,0.00016712,2]
[350095019,1737623439174,-511.48560337,0.00016712,2]
[350095020,1737623439183,-500.0,0.00016712,2]
[350095021,1737623439194,-514.24628328,0.00016712,2]
[350095022,1737623439204,-500.0,0.00016712,2]
[350095023,1737623439214,-500.0,0.00016712,2]
[350095024,1737623439224,-500.0,0.00016712,2]
[350095025,1737623439233,-500.0,0.00016712,2]
[350095026,1737623439243,-500.0,0.00016712,2]
[350095027,1737623439253,-500.0,0.00016712,2]
[350095028,1737623439263,-433.598303,0.00016712,2]
[350095029,1737623439272,-500.0,0.00016712,2]
[350095030,1737623439282,-272.31571718,0.00016712,2]
[350095031,1737623439292,-500.0,0.00016712,2]
[350095032,1737623439301,-500.0,0.00016712,2]
[350095033,1737623439311,-500.0,0.00016712,2]
[350095034,1737623439320,-500.0,0.00016712,2]
[350095035,1737623439332,-578.32927478,0.00016712,2]
[350095036,1737623439341,-500.0,0.00016712,2]
[350095037,1737623439350,-500.0,0.00016712,2]
[350095038,1737623439360,-1273.6,0.00016712,2]
[350095039,1737623439369,-500.0,0.00016712,2]
[350095040,1737623439378,-759.09,0.00016712,2]
[350095041,1737623439387,-551.66070285,0.00016712,2]
[350095042,1737623439397,-435.796508,0.00016712,2]
[350095043,1737623439406,-500.0,0.00016712,2]
[350095044,1737623439415,-500.0,0.00016712,2]
[350095045,1737623439425,-500.0,0.00016712,2]
[350095046,1737623439435,-500.0,0.00016712,2]
[350095047,1737623439445,-500.0,0.00016712,2]
[350095048,1737623439454,-500.0,0.00016712,2]
[350095049,1737623439463,-297.29381965,0.00016712,2]
[350095050,1737623439472,-500.0,0.00016712,2]
[350095051,1737623439481,-391.87255552,0.00016712,2]
[350095052,1737623439620,-108.12744448,0.00016712,2]
[350095053,1737623439629,-226.25456484,0.00016712,2]
[350095056,1737623440380,-270.6225767,0.00016712,2]
[350095057,1737623440392,-3.12285846,0.00016712,2]
[350095058,1737623440402,-520.87,0.00016712,2]
[350095059,1737623440411,-500.0,0.00016712,2]
[350095060,1737623440420,-500.0,0.00016712,2]
[350095061,1737623440429,-500.0,0.00016712,2]
[350095062,1737623440438,-53.6794681,0.00016712,2]
[350095063,1737623440453,-446.3205319,0.00016712,2]
[350095064,1737623440463,-73.98324092,0.00016712,2]
[350095065,1737623440474,-338.41389016,0.00016712,2]
[350095066,1737623440630,-87.60286892,0.00016712,2]
[350095067,1737623440639,-500.0,0.00016712,2]
[350095068,1737623440648,-500.0,0.00016712,2]
[350095069,1737623440657,-500.0,0.00016712,2]
[350095070,1737623440666,-500.0,0.00016712,2]
[350095071,1737623440675,-500.0,0.00016712,2]
[350095072,1737623440684,-328.54667689,0.00016712,2]
[350095073,1737623440693,-500.0,0.00016712,2]
[350095074,1737623440702,-48.80009479,0.00016712,2]
[350095075,1737623440713,-451.19990521,0.00016712,2]
[350095076,1737623440722,-48.80009479,0.00016712,2]
[350095077,1737623440733,-362.85608805,0.00016712,2]
[350095078,1737623440742,-149.49543997,0.00016712,2]
[350095079,1737623440797,-350.50456003,0.00016712,2]
[350095080,1737623440807,-372.60177286,0.00016712,2]
[350095081,1737623440820,-173.46822714,0.00016712,2]
[350095082,1737623440829,-500.0,0.00016712,2]
[350095083,1737623440838,-500.0,0.00016712,2]
[350095084,1737623440847,-500.0,0.00016712,2]
[350095085,1737623440857,-500.0,0.00016712,2]
[350095086,1737623440866,-500.0,0.00016712,2]
[350095087,1737623440875,-244.62969951,0.00016712,2]
[350095092,1737623443240,-1859.77,0.00016438,2]
[350095093,1737623443249,-1084.75,0.00016438,2]
[350095094,1737623443258,-500.0,0.00016438,2]
[350095095,1737623443267,-358.57030049,0.00016712,2]
[350095096,1737623443276,-500.0,0.00016712,2]
[350095097,1737623443285,-500.0,0.00016712,2]
[350095098,1737623443294,-500.0,0.00016712,2]
[350095099,1737623443303,-367.11,0.00016712,2]
[350095100,1737623443313,-500.0,0.00016712,2]
[350095101,1737623443322,-500.0,0.00016712,2]
[350095102,1737623443332,-575.64,0.00016712,2]
[350095103,1737623443344,-500.0,0.00016712,2]
[350095104,1737623443353,-500.0,0.00016712,2]
[350095105,1737623443363,-500.0,0.00016712,2]
[350095106,1737623443372,-536.69,0.00016712,2]
[350095107,1737623443381,-500.0,0.00016712,2]
[350095108,1737623443390,-561.16,0.00016712,2]
[350095109,1737623443399,-686.87,0.00016712,2]
[350095110,1737623443408,-500.0,0.00016712,2]
[350095111,1737623443417,-500.0,0.00016712,2]
[350095112,1737623443426,-500.0,0.00016712,2]
[350095113,1737623443435,-654.61,0.00016712,2]
[350095114,1737623443444,-500.0,0.00016712,2]
[350095115,1737623443454,-615.36,0.00016712,2]
[350095116,1737623443463,-500.0,0.00016712,2]
[350095117,1737623443471,-651.77,0.00016712,2]
[350095118,1737623443480,-500.0,0.00016712,2]
[350095119,1737623443490,-505.57,0.00016712,2]
[350095120,1737623443499,-500.0,0.00016712,2]
[350095121,1737623443508,-500.0,0.00016712,2]
[350095123,1737623443517,-500.0,0.00016712,2]
[350095125,1737623443526,-551.97,0.00016712,2]
[350095127,1737623443535,-500.0,0.00016712,2]
[350095129,1737623443545,-500.0,0.00016712,2]
[350095131,1737623443554,-500.0,0.00016712,2]
[350095133,1737623443563,-500.0,0.00016712,2]
[350095135,1737623443572,-500.0,0.00016712,2]
[350095137,1737623443581,-628.37,0.00016712,2]
[350095139,1737623443594,-500.0,0.00016712,2]
[350095141,1737623443604,-500.0,0.00016712,2]
[350095143,1737623443615,-597.88,0.00016712,2]
[350095145,1737623443624,-500.0,0.00016712,2]
[350095147,1737623443633,-500.0,0.00016712,2]
[350095149,1737623443642,-500.0,0.00016712,2]
[350095151,1737623443651,-618.63,0.00016712,2]
[350095153,1737623443660,-517.34,0.00016712,2]
[350095155,1737623443670,-666.65,0.00016712,2]
[350095157,1737623443678,-500.0,0.00016712,2]
[350095159,1737623443688,-500.0,0.00016712,2]
[350095161,1737623443697,-500.0,0.00016712,2]
[350095163,1737623443706,-500.0,0.00016712,2]
[350095165,1737623443715,-500.0,0.00016712,2]
[350095167,1737623443725,-500.0,0.00016712,2]
[350095169,1737623443734,-500.0,0.00016712,2]
[350095171,1737623443743,-500.0,0.00016712,2]
[350095173,1737623443752,-500.0,0.00016712,2]
[350095175,1737623443761,-3587.15,0.00016712,2]
[350095177,1737623443770,-2068.44,0.00016712,2]
[350095179,1737623443779,-533.91,0.00016712,2]
[350095181,1737623443788,-731.16,0.00016712,2]
[350095183,1737623443796,-500.0,0.00016712,2]
[350095185,1737623443805,-616.9,0.00016712,2]
[350095187,1737623443814,-689.59,0.00016712,2]
[350095188,1737623443823,-500.0,0.00016712,2]
[350095190,1737623443832,-796.43,0.00016712,2]
[350095192,1737623443842,-1487.94,0.00016712,2]
[350095194,1737623443852,-630.97,0.00016712,2]
[350095196,1737623443861,-500.0,0.00016712,2]
[350095198,1737623443870,-500.0,0.00016712,2]
[350095200,1737623443879,-500.0,0.00016712,2]
[350095202,1737623443889,-1240.51,0.00016712,2]
[350095204,1737623443898,-500.0,0.00016712,2]
[350095206,1737623443907,-1460.52,0.00016712,2]
[350095208,1737623443916,-2135.22,0.00016712,2]
[350095210,1737623443925,-500.0,0.00016712,2]
[350095212,1737623443934,-1323.84,0.00016712,2]
[350095215,1737623443943,-500.0,0.00016712,2]
[350095217,1737623443952,-639.3,0.00016712,2]
[350095219,1737623443961,-888.2,0.00016712,2]
[350095221,1737623443970,-3222.74,0.00016712,2]
[350095223,1737623443979,-832.79,0.00016712,2]